fUSD/lending_fUSD_20250519
["ID","MTS","AMOUNT","RATE_DAILY","PERIOD"]
[361671150,1747679432256,-200.0,0.000119,4]
[361671151,1747679432265,-1213.94269164,0.000119,2]
[361671152,1747679432274,-2159.73354114,0.000119,2]
[361671153,1747679432283,-320.77011672,0.000119,2]
[361671154,1747679432293,-339.95161181,0.000119,2]
[361671155,1747679432303,-639.81758555,0.000119,2]
[361671156,1747679432312,-500.0,0.00011973,2]
[361671157,1747679432321,-500.0,0.00011973,2]
[361671158,1747679432331,-500.0,0.00011973,2]
[361671159,1747679432340,-504.44490417,0.00011973,2]
[361671160,1747679432349,-500.0,0.00011973,2]
[361671161,1747679432360,-201.7,0.0001199,2]
[361671162,1747679432370,-118.97422959,0.0001199,2]
[361671163,1747679432381,-82.72577041,0.0001199,2]
[361671164,1747679432390,-201.7,0.0001199,2]
[361671165,1747679432400,-201.7,0.0001199,2]
[361671166,1747679432409,-201.7,0.0001199,2]
[361671167,1747679432419,-201.7,0.0001199,2]
[361671168,1747679432428,-201.7,0.0001199,2]
[361671169,1747679432437,-201.7,0.0001199,2]
[361671170,1747679432446,-201.7,0.0001199,2]
[361671171,1747679432454,-201.7,0.0001199,2]
[361671172,1747679432463,-150.0,0.00011999,2]
[361671173,1747679432472,-416.32681448,0.00011999,2]
[361671174,1747679432482,-500.0,0.00011999,2]
[361671175,1747679432491,-459.28743756,0.00011999,2]
[361671176,1747679432500,-180.65170721,0.00011999,2]
[361671177,1747679432512,-69.34829279,0.00011999,2]
[361671178,1747679432521,-15506.65170721,0.00012,2]
[361671180,1747679432568,-6648.05288531,0.00012,2]
[361671182,1747679432579,-1595.44345045,0.00012,2]
[361671184,1747679432590,-562.76417773,0.00012,2]
[361671186,1747679432600,-12366.93678783,0.00012,2]
[361671188,1747679432611,-1120.88430868,0.00012,2]
[361671192,1747679432638,-6422.70180828,0.00012,2]
[361671195,1747679432665,-3274.25271146,0.00012,2]
[361671197,1747679432676,-458.0009778,0.00012,2]
[361671199,1747679432687,-945.825,0.00012,2]
[361671202,1747679432697,-7211.0,0.00012,2]
[361671206,1747679432709,-177947.51203427,0.00012,2]
[361671210,1747679432720,-180037.92436095,0.00012,2]
[361671213,1747679432731,-3425.0999998,0.00012,2]
[361671216,1747679432742,-6325.3,0.00012,2]
[361671219,1747679432754,-5182.79999997,0.00012,2]
[361671221,1747679432765,-2277.1,0.00012,2]
[361671228,1747679432815,-2200.469976,0.00012,2]
[361671657,1747679437977,-196.08121287,0.000119,2]
[361671659,1747679437985,-756.86627913,0.00012,2]
[361671660,1747679438035,-9078.16897881,0.00012,2]
[361671661,1747679438047,-1967.41000002,0.00012,2]
[361671662,1747679438059,-1620.877762,0.00012,2]
[361671663,1747679438072,-2290.16,0.00012,2]
[361671664,1747679438084,-476.03,0.00012,2]
[361671665,1747679438097,-1662.4,0.00012,2]
[361671666,1747679438145,-328954.79899726,0.00012,2]
[361671667,1747679438157,-370.81633846,0.00012,2]
[361671668,1747679438172,-291817.29863485,0.00012,2]
[361671669,1747679438269,-2340.0,0.00012,2]
[361671686,1747679438490,-135100.03000004,0.00012,2]
[361671698,1747679438539,-365.0397,0.00012,2]
[361671700,1747679438552,-330.83118772,0.00012,2]
[361671702,1747679438566,-3142.87118347,0.00012,2]
[361671716,1747679440748,-32853.85564883,0.00012,2]
[361671717,1747679440761,-617.925,0.00012,2]
[361671725,1747679441310,-4110.01921688,0.00012,2]
[361671726,1747679441327,-254.93574042,0.00012,2]
[361671727,1747679441359,-453.0,0.00012,2]
[361671728,1747679441373,-1432.26839026,0.00012,2]
[361671729,1747679441386,-721.51123384,0.00012,2]
[361671730,1747679441400,-3611.53000018,0.00012,2]
[361671731,1747679441413,-9033.87858082,0.00012,2]
[361671732,1747679441491,-803.358,0.00012,2]
[361671733,1747679441521,-597.37386449,0.00012,2]
[361671734,1747679441564,-2400.0,0.00012,2]
[361671735,1747679441680,-238.69493313,0.00012,2]
[361671736,1747679441693,-974.49434683,0.00012,2]
[361671737,1747679441706,-576.99,0.00012,2]
[361671742,1747679443503,-6015.53178867,0.00012,2]
[361671743,1747679443552,-1014.17019827,0.00012,2]
[361671744,1747679443567,-2584.8838602,0.00012,2]
[361671745,1747679443632,-769.4922,0.00012,2]
[361671746,1747679443647,-4908.2,0.00012,2]
[361671747,1747679443669,-14460.660835,0.00012,2]
[361671748,1747679443682,-288.60018637,0.00012,2]
[361671749,1747679443695,-491.42500007,0.00012,2]
[361671750,1747679443711,-1443.469986,0.00012,2]
[361671751,1747679443724,-29582.95799384,0.00012,2]
[361671752,1747679443753,-1182236.63793993,0.00012,2]
[361671753,1747679443767,-1002.19228485,0.00012,2]
[361671804,1747679446019,-18497.55807938,0.00012,2]
[361671812,1747679446154,-5418.64552201,0.00012,2]
[361671815,1747679446207,-15754.87672,0.00012,2]
[361671819,1747679446264,-2127.46252701,0.00012,2]
[361671820,1747679446278,-2042.8000012,0.00012,2]
[361671822,1747679446290,-936.58782271,0.00012,2]
[361671824,1747679446302,-338.30437561,0.00012,2]
[361671826,1747679446328,-12431.91950183,0.00012,2]
[361671828,1747679446341,-10252.4760729,0.00012,2]
[361671830,1747679446357,-1200.23193712,0.00012,2]
[361671834,1747679446416,-1962.75592806,0.00012,2]
[361671889,1747679673095,606.7,9.719e-05,2]
[361671890,1747679740594,-200.0058518,0.00011356,2]
[361671891,1747679832698,-152.12278338,0.00011278,2]
[361671892,1747679868727,1783.54,0.00011162,2]
[361671893,1747679869446,-213.65002,0.00011222,2]
[361671894,1747679873499,168.5,9.002e-05,2]
[361671895,1747679893125,-200.0,0.00011232,2]
[361671896,1747679896156,-186.71405016,0.00011232,2]
[361671897,1747679899673,-131.24594984,0.00011232,2]
[361671898,1747679899696,-45.05275245,0.00011233,2]
[361671899,1747679901703,-175.54691229,0.00011233,2]
[361671900,1747679904623,1852.42,0.00010554,2]
[361671901,1747679905660,-325.5242035,0.00011233,2]
[361671902,1747679908385,-167.39892415,0.00011233,2]
[361671903,1747679910191,-225.64925356,0.00011233,2]
[361671904,1747679912194,-190.31111579,0.00011233,2]
[361671905,1747679929688,6079.680802,0.00011176,2]
[361671906,1747679935286,320.42317509,0.00011135,2]
[361671907,1747680003740,834.11,0.00010553,2]
[361671908,1747680049956,237.37,0.00010537,2]
[361671909,1747680080233,250.0,0.00010537,2]
[361671910,1747680149564,-1000.0,0.000119,3]
[361671911,1747680168114,-911.7199,0.00011219,2]
[361671912,1747680179184,-75.47052442,0.00011219,2]
[361671913,1747680179207,-74.52947558,0.00011226,2]
[361671914,1747680275560,213.61545006,0.00011134,2]
[361671915,1747680281397,1061.81,0.00010601,2]
[361671916,1747680295074,338.63,0.00010524,2]
[361671917,1747680324253,165.9,0.0001052,2]
[361671918,1747680495031,1126.55,0.00010527,2]
[361671921,1747680546502,-200.0,0.00011228,2]
[361671922,1747680546527,-200.0,0.00011229,2]
[361671923,1747680546548,-1865.30683826,0.00011233,2]
[361671924,1747680546570,-200.0,0.00011234,2]
[361671925,1747680546596,-517.96,0.00011235,2]
[361671926,1747680546619,-517.96,0.00011238,2]
[361671927,1747680546639,-517.96,0.0001124,2]
[361671928,1747680546662,-517.96,0.00011243,2]
[361671929,1747680546683,-517.96,0.00011246,2]
[361671930,1747680546704,-517.96,0.00011249,2]
[361671931,1747680546725,-517.96,0.00011252,2]
[361671932,1747680546746,-517.96,0.00011255,2]
[361671933,1747680546767,-517.96,0.00011258,2]
[361671934,1747680546788,-517.96,0.00011261,2]
[361671935,1747680546810,-1200.0,0.00011263,2]
[361671936,1747680546830,-517.96,0.00011264,2]
[361671937,1747680546850,-300.0,0.00011265,2]
[361671938,1747680546871,-300.0,0.00011266,2]
[361671939,1747680546890,-517.96,0.00011267,2]
[361671940,1747680546910,-517.96,0.0001127,2]
[361671941,1747680546931,-517.96,0.00011273,2]
[361671942,1747680546952,-517.96,0.00011276,2]
[361671943,1747680546974,-510.94721662,0.00011278,2]
[361671944,1747680546996,-517.96,0.00011279,2]
[361671945,1747680547018,-517.96,0.00011282,2]
[361671946,1747680547039,-150.0,0.00011282,2]
[361671947,1747680547059,-517.96,0.00011285,2]
[361671948,1747680547080,-517.96,0.00011288,2]
[361671949,1747680547099,-550.2341482,0.00011356,2]
[361671950,1747680547118,-500.0,0.00011443,2]
[361671951,1747680547139,-213.61545004,0.00011467,2]
[361671952,1747680547161,-26508.01139775,0.0001147,2]
[361671953,1747680547181,-2303.68,0.00011497,2]
[361671954,1747680547202,-2751.0,0.00011507,2]
[361671955,1747680547221,-166.52,0.00011577,2]
[361671956,1747680547244,-847.12066958,0.00011589,2]
[361671957,1747680547263,-15986.0342887,0.00011696,2]
[361671958,1747680547284,-5780.575,0.00011706,2]
[361671959,1747680547303,-267.754,0.00011706,2]
[361671960,1747680547324,-23900.0,0.00011707,2]
[361671961,1747680547344,-213.61545004,0.000118,2]
[361671962,1747680547364,-3868.45,0.00011856,2]
[361671963,1747680547385,-151.0,0.00011866,2]
[361671964,1747680547404,-668.65185757,0.00011866,2]
[361671965,1747680547424,-207.4,0.00011866,2]
[361671966,1747680547444,-725.71395062,0.00011866,2]
[361671967,1747680547464,-1960.78255532,0.0001188,2]
[361671968,1747680547488,-500.0,0.00011898,2]
[361671969,1747680547511,-500.0,0.00011898,2]
[361671970,1747680547536,-500.0,0.00011898,2]
[361671971,1747680547558,-500.0,0.00011898,2]
[361671972,1747680547584,-500.0,0.00011898,2]
[361671973,1747680547607,-500.0,0.00011898,2]
[361671974,1747680547631,-500.0,0.00011898,2]
[361671975,1747680547655,-500.0,0.00011898,2]
[361671976,1747680547682,-500.0,0.00011898,2]
[361671977,1747680547705,-548.00152401,0.00011898,2]
[361671978,1747680547729,-500.0,0.00011898,2]
[361671979,1747680547753,-500.0,0.00011898,2]
[361671980,1747680547778,-500.0,0.00011898,2]
[361671981,1747680547801,-500.0,0.00011898,2]
[361671982,1747680547824,-500.0,0.00011898,2]
[361671983,1747680547848,-500.0,0.00011898,2]
[361671984,1747680547871,-500.0,0.00011898,2]
[361671985,1747680547895,-500.0,0.00011898,2]
[361671986,1747680547918,-500.0,0.00011898,2]
[361671987,1747680547942,-500.0,0.00011898,2]
[361671988,1747680547965,-500.0,0.00011898,2]
[361671989,1747680547988,-500.0,0.00011898,2]
[361671990,1747680548011,-500.0,0.00011898,2]
[361671991,1747680548035,-500.0,0.00011898,2]
[361671992,1747680548058,-500.0,0.00011898,2]
[361671993,1747680548083,-500.0,0.00011898,2]
[361671994,1747680548108,-500.0,0.00011898,2]
[361671995,1747680548133,-500.0,0.00011898,2]
[361671996,1747680548157,-500.0,0.00011898,2]
[361671997,1747680548177,-585.55226982,0.00011899,2]
[361671998,1747680548199,-1211.1261,0.000119,2]
[361671999,1747680548219,-173.00766756,0.000119,2]
[361672000,1747680548240,-1000.0,0.000119,2]
[361672001,1747680548259,-166.55221696,0.000119,2]
[361672002,1747680548282,-5000.0,0.000119,2]
[361672003,1747680548303,-1165.46593669,0.000119,2]
[361672004,1747680548323,-199.67466014,0.000119,2]
[361672005,1747680548343,-195.67071287,0.000119,2]
[361672006,1747680548366,-152.69207777,0.000119,2]
[361672007,1747680548386,-606.7,0.00011983,2]
[361672008,1747680548407,-3176.0,0.00011999,2]
[361672009,1747680548427,-185.40816923,0.00012,2]
[361672010,1747680548450,-17854.76444225,0.00012,2]
[361672011,1747680551136,-678.23,0.00011293,2]
[361672012,1747680551157,-847.11285019,0.00011552,2]
[361672013,1747680551179,-505.01012489,0.00011973,2]
[361672014,1747680551199,-507.55889128,0.00011973,2]
[361672015,1747680551223,-57139.14109364,0.00012,2]
[361672016,1747680555140,-67879.23548,0.00012,2]
[361672017,1747680564155,-1983.44296636,0.000119,2]
[361672018,1747680564178,-46298.22781364,0.00012,2]
[361672019,1747680565330,-8208.306834,0.00012,2]
[361672023,1747680632298,-379.91624008,0.000119,2]
[361672024,1747680632307,-1021.67392361,0.000119,2]
[361672025,1747680632317,-200.0,0.0001195,2]
[361672026,1747680632326,-200.0,0.00011989,2]
[361672027,1747680632335,-1200.0,0.00011999,2]
[361672028,1747680632344,-300.0,0.00011999,2]
[361672029,1747680632354,-185.40816923,0.00012,2]
[361672030,1747680632363,-4270.90279684,0.00012,2]
[361672031,1747680632374,-8000.0,0.00012,2]
[361672032,1747680632865,-232954.48943619,0.00012,2]
[361672048,1747680637899,-500.0,0.00011999,2]
[361672049,1747680637909,-500.0,0.00011999,2]
[361672050,1747680637919,-500.0,0.00011999,2]
[361672051,1747680637930,-500.0,0.00011999,2]
[361672052,1747680637939,-304.10282129,0.00011999,2]
[361672053,1747680637949,-23832.7080822,0.00012,2]
[361672054,1747680638054,-704.41414524,0.00012,2]
[361672055,1747680638066,-699.05973,0.00012,2]
[361672056,1747680638077,-9133.79117921,0.00012,2]
[361672057,1747680638088,-1706.9000001,0.00012,2]
[361672059,1747680638460,-6570.00157072,0.00012,2]
[361672062,1747680639279,-0.00149714,0.00012,2]
[361672063,1747680639378,-64825.58343439,0.00012,2]
[361672064,1747680639467,-261.20731046,0.00012,2]
[361672065,1747680639479,-1564.56717906,0.00012,2]
[361672066,1747680639490,-2691.25115118,0.00012,2]
[361672067,1747680639539,-1041.1,0.00012,2]
[361672073,1747680640592,-10436.35308095,0.00012,2]
[361672074,1747680640744,-165.5822956,0.00012,2]
[361672075,1747680640788,-1152.96069191,0.00012,2]
[361672077,1747680640799,-500.0,0.00012,2]
[361672078,1747680640810,-2381.21014172,0.00012,2]
[361672079,1747680640862,-11728.87028979,0.00012,2]
[361672080,1747680640874,-93460.45117282,0.00012,2]
[361672081,1747680640883,-846087.47575584,0.00012,2]
[361672082,1747680640934,-4099.16291219,0.00012,2]
[361672083,1747680640945,-527.55520127,0.00012,2]
[361672084,1747680640956,-1000.0,0.00012,2]
[361672085,1747680640967,-29069.87931101,0.00012,2]
[361672086,1747680641181,-2882.59547471,0.00012,2]
[361672087,1747680641196,-86139.0449796,0.00012,2]
[361672088,1747680641210,-44647.04052041,0.00012,2]
[361672089,1747680641223,-5800.34537395,0.00012,2]
[361672104,1747680643402,-2177.74616152,0.00012,2]
[361672105,1747680643490,-10412.0,0.00012,2]
[361672106,1747680643501,-624391.8757109,0.00012,2]
[361672107,1747680643516,-2617.7,0.00012,2]
[361672111,1747680643616,-428.6928838,0.00012,2]
[361672150,1747680646212,-637.13999091,0.00012,2]
[361672156,1747680646338,-102205.22230545,0.00012,2]
[361672217,1747680647218,-1900.0,0.00012,2]
[361672221,1747680647247,-981.0000003,0.00012,2]
[361672225,1747680647275,-7134.45055664,0.00012,2]
[361672232,1747680647329,-5211.4439837,0.00012,2]
[361672245,1747680671651,200.0,0.000112,4]
[361672246,1747680676868,-407.08282113,0.000113,4]
[361672247,1747680698589,707.26,9.357e-05,2]
[361672248,1747680742718,-92.91717887,0.000113,4]
[361672249,1747680742741,-183.29814531,0.0001135,2]
[361672250,1747680746028,-16.70185469,0.0001135,2]
[361672251,1747680746051,-155.64803946,0.000114,4]
[361672252,1747680749275,-185.63906456,0.000114,4]
[361672253,1747680751785,-233.82104856,0.000114,4]
[361672254,1747680755316,-124.89184742,0.000114,4]
[361672255,1747680755341,-36.80815258,0.00011454,2]
[361672256,1747680756944,-163.19184742,0.00011454,2]
[361672257,1747680756967,-85.28028128,0.0001147,2]
[361672258,1747680759938,-215.95880197,0.0001147,2]
[361672259,1747680762545,-175.88091675,0.0001147,2]
[361672260,1747680762568,-149.00481602,0.000115,4]
[361672261,1747680764790,-192.82655609,0.000115,4]
[361672262,1747680765225,23900.0,0.00011162,2]
[361672263,1747680787945,-161.17344391,0.000115,4]
[361672264,1747680789910,-208.72747989,0.0001125,2]
[361672265,1747680792023,-63.94252011,0.0001125,2]
[361672266,1747680792051,-133.2634492,0.000115,4]
[361672267,1747680793426,-200.77892013,0.000115,4]
[361672268,1747680793476,327.32,0.00011167,2]
[361672269,1747680797116,-162.95281465,0.000115,4]
[361672270,1747680835148,-167.74004796,0.00011542,2]
[361672271,1747680838775,-263.631534,0.00011542,2]
[361672272,1747680840684,-167.73142838,0.00011542,2]
[361672273,1747680845244,-168.78280266,0.00011542,2]
[361672274,1747680863997,1600.0,0.00011134,2]
[361672275,1747680866251,1151.84,0.00011134,2]
[361672276,1747680872692,1850.32,0.00011127,2]
[361672277,1747680910611,-220.88662924,0.00011442,2]
[361672278,1747680911891,168.89519109,0.00027397,120]
[361672279,1747680912758,-312.89406974,0.00011442,2]
[361672280,1747680917693,-160.21,0.00011379,2]
[361672281,1747680917717,-64.87405032,0.00011442,2]
[361672282,1747680921777,-356.0,0.00027589,120]
[361672283,1747680934830,791.94,0.00011046,2]
[361672284,1747680946962,163.71,0.00011046,2]
[361672285,1747681010405,1852.42,0.00011005,2]
[361672286,1747681050287,457.87,0.00010978,2]
[361672287,1747681050494,457.87,0.00010981,2]
[361672288,1747681050667,457.87,0.00010984,2]
[361672289,1747681050882,457.87,0.00010987,2]
[361672290,1747681051150,457.87,0.0001099,2]
[361672291,1747681051572,457.87,0.00010992,2]
[361672292,1747681052232,457.87,0.00010995,2]
[361672293,1747681052341,457.87,0.00010998,2]
[361672294,1747681052437,457.87,0.00011001,2]
[361672295,1747681052650,457.87,0.00011004,2]
[361672296,1747681052897,457.87,0.00011007,2]
[361672297,1747681053037,457.87,0.0001101,2]
[361672298,1747681053150,202.0,0.00011013,2]
[361672299,1747681053176,255.87,0.00011013,2]
[361672300,1747681053274,457.87,0.00011015,2]
[361672301,1747681053378,457.87,0.00011018,2]
[361672302,1747681053584,457.87,0.00011021,2]
[361672303,1747681053797,457.87,0.00011024,2]
[361672304,1747681054331,457.87,0.00011027,2]
[361672305,1747681054579,457.87,0.0001103,2]
[361672306,1747681054664,457.87,0.00011033,2]
[361672307,1747681142779,250.0,0.00010917,2]
[361672308,1747681213562,1000.0,0.00010919,2]
[361672309,1747681228833,1138.0,0.000108,2]
[361672310,1747681331086,180.52,0.00010921,2]
[361672311,1747681374368,166.06,0.00010915,2]
[361672312,1747681637591,200.0,0.00010916,2]
[361672313,1747681648113,-1111.835498,0.00011356,2]
[361672314,1747681648135,-200.0,0.00011413,2]
[361672315,1747681648156,-67.27873576,0.00011442,2]
[361672317,1747681740366,381.69,0.00010938,2]
[361672318,1747681746681,-1000.0,0.00042649,30]
[361672319,1747681746708,-1360.0,0.00042649,30]
[361672320,1747681746740,-1360.0,0.00042649,30]
[361672321,1747681746768,-1360.0,0.00042649,30]
[361672322,1747681746794,-1360.0,0.00042649,30]
[361672323,1747681746821,-1360.0,0.00042649,30]
[361672324,1747681746847,-1360.0,0.00042649,30]
[361672325,1747681746872,-1360.0,0.00042649,30]
[361672326,1747681746899,-1360.0,0.00042649,30]
[361672327,1747681746925,-1360.0,0.00042649,30]
[361672328,1747681746951,-1360.0,0.00042649,30]
[361672329,1747681746983,-227.82946118,0.00042649,120]
[361672330,1747681747008,-3001.51,0.00042649,120]
[361672331,1747681747034,-2000.0,0.00042649,120]
[361672332,1747681747059,-2000.0,0.00042649,120]
[361672333,1747681747087,-50000.0,0.00042649,30]
[361672334,1747681747115,-50000.0,0.00042649,31]
[361672335,1747681747151,-50000.0,0.00042649,32]
[361672336,1747681747178,-50000.0,0.00042649,33]
[361672337,1747681747206,-50000.0,0.00042649,34]
[361672338,1747681747235,-50000.0,0.00042649,35]
[361672339,1747681747263,-50000.0,0.00042649,36]
[361672340,1747681747291,-50000.0,0.00042649,37]
[361672341,1747681747320,-16800.0,0.00042649,120]
[361672342,1747681747351,-50000.0,0.00042649,38]
[361672343,1747681747378,-50000.0,0.00042649,39]
[361672344,1747681747404,-428.24709603,0.00042649,120]
[361672345,1747681747443,-200000.0,0.00042649,120]
[361672346,1747681747473,-16822.12663802,0.00042649,30]
[361672347,1747681747502,-803.26538751,0.00042649,120]
[361672348,1747681747532,-8658.0399443,0.00042649,30]
[361672349,1747681747559,-1135.0,0.00042649,120]
[361672350,1747681747586,-70587.92098579,0.00042649,120]
[361672351,1747681747615,-28338.20927715,0.00042649,120]
[361672352,1747681747644,-26318.0,0.00042649,30]
[361672353,1747681747671,-151.55295619,0.00042649,30]
[361672354,1747681747698,-420.0,0.00042649,120]
[361672355,1747681747727,-380.0,0.00042649,120]
[361672356,1747681747755,-397.99520231,0.00042649,120]
[361672357,1747681747784,-420.0,0.00042649,120]
[361672358,1747681747813,-420.0,0.00042649,120]
[361672359,1747681747840,-410.69343317,0.00042649,120]
[361672360,1747681747867,-233.02556184,0.00042649,120]
[361672361,1747681747894,-325.62048889,0.00042649,120]
[361672362,1747681748160,-462.51915197,0.00042649,120]
[361672363,1747681748264,-420.0,0.00042649,120]
[361672364,1747681748294,-515.50737382,0.00042649,120]
[361672365,1747681748321,-400.0,0.00042649,120]
[361672366,1747681748348,-522.07985806,0.00042649,120]
[361672367,1747681748374,-431.05390832,0.00042649,120]
[361672368,1747681748399,-420.0,0.00042649,120]
[361672369,1747681748426,-433.86677839,0.00042649,120]
[361672370,1747681748452,-400.23496494,0.00042649,120]
[361672371,1747681748479,-400.0,0.00042649,120]
[361672372,1747681748507,-420.0,0.00042649,120]
[361672373,1747681748533,-380.0,0.00042649,120]
[361672374,1747681748578,-420.0,0.00042649,120]
[361672375,1747681748621,-504.96978582,0.00042649,120]
[361672376,1747681748668,-420.0,0.00042649,120]
[361672377,1747681748712,-499.32986392,0.00042649,120]
[361672378,1747681748739,-420.0,0.00042649,120]
[361672379,1747681748766,-420.0,0.00042649,120]
[361672380,1747681748792,-408.87494756,0.00042649,120]
[361672381,1747681748818,-403.8453935,0.00042649,120]
[361672382,1747681748844,-357.84864684,0.00042649,120]
[361672383,1747681748870,-400.0,0.00042649,120]
[361672384,1747681748899,-266.85853596,0.00042649,120]
[361672385,1747681748929,-420.0,0.00042649,120]
[361672386,1747681748957,-420.0,0.00042649,120]
[361672387,1747681748988,-420.0,0.00042649,120]
[361672388,1747681749014,-420.0,0.00042649,120]
[361672389,1747681749043,-420.0,0.00042649,120]
[361672390,1747681749077,-420.0,0.00042649,120]
[361672391,1747681749106,-420.0,0.00042649,120]
[361672392,1747681749154,-192.0,0.00042649,120]
[361672393,1747681749201,-183.19795809,0.00042649,120]
[361672394,1747681749253,-420.0,0.00042649,120]
[361672395,1747681749295,-420.0,0.00042649,120]
[361672396,1747681749330,-420.0,0.00042649,120]
[361672397,1747681749358,-167.39740039,0.00042649,120]
[361672398,1747681749385,-401.58726375,0.00042649,120]
[361672399,1747681749414,-420.0,0.00042649,120]
[361672400,1747681749442,-420.0,0.00042649,120]
[361672401,1747681749469,-360.0,0.00042649,120]
[361672402,1747681749497,-420.0,0.00042649,120]
[361672403,1747681749525,-407.36132185,0.00042649,120]
[361672404,1747681749553,-405.17093689,0.00042649,120]
[361672405,1747681749581,-420.0,0.00042649,120]
[361672406,1747681749611,-420.0,0.00042649,120]
[361672407,1747681749639,-360.0,0.00042649,120]
[361672408,1747681749667,-420.0,0.00042649,120]
[361672409,1747681749694,-305.74528501,0.00042649,120]
[361672410,1747681749730,-151.55344983,0.00042649,120]
[361672411,1747681749764,-420.0,0.00042649,120]
[361672412,1747681749793,-402.81516505,0.00042649,120]
[361672413,1747681749828,-400.0,0.00042649,120]
[361672414,1747681749857,-287.00498643,0.00042649,120]
[361672415,1747681749889,-420.0,0.00042649,120]
[361672416,1747681749918,-362.01722187,0.00042649,120]
[361672417,1747681749951,-420.0,0.00042649,120]
[361672418,1747681749980,-174.73076602,0.00042649,120]
[361672419,1747681750015,-420.0,0.00042649,120]
[361672420,1747681750043,-420.0,0.00042649,120]
[361672421,1747681750077,-380.0,0.00042649,120]
[361672422,1747681750106,-420.0,0.00042649,120]
[361672423,1747681750139,-420.0,0.00042649,120]
[361672424,1747681750167,-167.51088973,0.00042649,120]
[361672425,1747681750192,-501.07560789,0.00042649,120]
[361672426,1747681750218,-420.0,0.00042649,120]
[361672427,1747681750243,-420.0,0.00042649,120]
[361672428,1747681750269,-420.0,0.00042649,120]
[361672429,1747681750297,-420.0,0.00042649,120]
[361672430,1747681750324,-420.0,0.00042649,120]
[361672431,1747681750351,-420.0,0.00042649,120]
[361672432,1747681750378,-420.0,0.00042649,120]
[361672433,1747681750405,-420.0,0.00042649,120]
[361672434,1747681750432,-174.41700628,0.00042649,120]
[361672435,1747681750458,-380.0,0.00042649,120]
[361672436,1747681750485,-420.0,0.00042649,120]
[361672437,1747681750512,-569.66782132,0.00042649,120]
[361672438,1747681750537,-400.0,0.00042649,120]
[361672439,1747681750563,-400.81825675,0.00042649,120]
[361672440,1747681750590,-284.73842009,0.00042649,120]
[361672441,1747681750617,-420.0,0.00042649,120]
[361672442,1747681750644,-420.0,0.00042649,120]
[361672443,1747681750671,-420.0,0.00042649,120]
[361672444,1747681750710,-420.0,0.00042649,120]
[361672445,1747681750739,-420.0,0.00042649,120]
[361672446,1747681750768,-420.0,0.00042649,120]
[361672447,1747681750795,-367.30388066,0.00042649,120]
[361672448,1747681750822,-420.0,0.00042649,120]
[361672449,1747681750851,-420.0,0.00042649,120]
[361672450,1747681750883,-380.0,0.00042649,120]
[361672451,1747681750913,-420.0,0.00042649,120]
[361672452,1747681750941,-420.0,0.00042649,120]
[361672453,1747681750969,-420.0,0.00042649,120]
[361672454,1747681751001,-420.0,0.00042649,120]
[361672455,1747681751029,-340.0,0.00042649,120]
[361672456,1747681751055,-420.0,0.00042649,120]
[361672457,1747681751082,-682.31,0.00042649,120]
[361672458,1747681751108,-380.82249255,0.00042649,120]
[361672459,1747681751135,-682.31,0.00042649,120]
[361672460,1747681751163,-682.31,0.00042649,120]
[361672461,1747681751192,-682.31,0.00042649,120]
[361672462,1747681751226,-682.31,0.00042649,120]